Workbook

Sheet Калькуляция
R1: пароль от таблицы | S1: 111
A3: Ф. И. О. заказчика | E3: Иванов Иван Иванович | J3: Иванов Иван Иванович
A4: Наименование/заказ | D4: Фурнитура | J4: Заказ №2
A5: Этаж | D5: 7 | J5: 1
A6: Адрес | D6: Казань | J6: Казань
A7: Наименование | B7: - | C7: Цвет, артикул | D7: Ед. изм. | E7: Погонаж изделия | F7: Коэффициент | G7: Закупочная цена в рублях относительно курса валюты | H7: По курсу валюты | I7: Цена в рублях | J7: Кол-во | K7: Стоимость | L7: Сумма
A8: Фурнитура 1 | J8: 0
A9: Штуцера
A10: ООО "ВОЛГА"
A11: Изделие 1 | D11: шт | F11: 1.6 | G11: 100 | I11: =G11 -> 100 | K11: =I11*F11 -> 160 | L11: =K11*J11 -> 0
A12: Изделие 2 | D12: шт | F12: 1.6 | G12: 150 | I12: =G12 -> 150 | K12: =I12*F12 -> 240 | L12: =K12*J12 -> 0
A13: Изделие 3 | D13: шт | F13: 1.6 | G13: 200 | I13: 200 | K13: =I13*F13 -> 320 | L13: =K13*J13 -> 0
A14: Втулки
A15: Изделие 4 | D15: шт | F15: 1.6 | G15: 300 | I15: =G15 -> 300 | K15: =I15*F15 -> 480 | L15: =K15*J15 -> 0
A16: Изделие 5 | D16: шт | F16: 1.6 | G16: 400 | I16: =G16 -> 400 | K16: =I16*F16 -> 640 | L16: =K16*J16 -> 0
A17: Опоры
A18: Колесные
A19: Изделие 6 | D19: шт | F19: 1.6 | G19: 450 | I19: =G19 -> 450 | K19: =I19*F19 -> 720 | L19: =K19*J19 -> 0
A20: Изделие 7 | D20: шт | F20: 1.6 | G20: 500 | I20: =G20 -> 500 | K20: 800 | L20: 0
A21: Квадратные
A22: Изделие 8 | D22: шт | F22: 1.6 | G22: 550 | I22: =G22 -> 550 | K22: =I22*F22 -> 880 | L22: =K22*J22 -> 0
A23: Изделие 9 | D23: шт | F23: 1.6 | G23: 600 | I23: =G23 -> 600 | K23: =I23*F23 -> 960 | L23: 0
A24: Изделие 10 | D24: шт | F24: 1.6 | G24: 650 | I24: 650 | K24: =I24*F24 -> 1040 | L24: 0
A25: Изделие 11 | D25: шт | F25: 1.6 | G25: 700 | I25: 700 | K25: =I25*F25 -> 1120 | L25: 0
K27: ИТОГО | L27: =SUM(L11:L13,L15:L16,L19:L20,L22:L25) -> 0
